Cogmind - Beta 9.4 @@@ ROGUE MODE // 2020.04.26 @ 12:41:07 Player: Chad Result: Destroyed by as-07129 with Assembled Heavy Rifle Performance ------------- Evolutions (0) 0 Regions Visited (4) 800 Robots Destroyed (11) 55 Value Destroyed (141) 141 Prototype IDs (1) 20 Alien Tech Used (0) 0 Bonus (345) 345 TOTAL SCORE: 1361 Bonus ------- Follower Combat Kills 210 Aligned with FarCom 300 Friendly Fire -165 Cogmind --------- Core Integrity 0/250 Matter 227/300 Energy 99/100 System Corruption 8% Temperature Cool (0) Movement Core (50) Location -9/Mines Parts ------- > --- POWER (1) -------- (None) > --- PROPULSION (2) --- (None) > --- UTILITY (2) ------ (None) > --- WEAPON (2) ------- (None) > --- INVENTORY (4) ---- AWS/Autocannon Peak State ------------ > --- POWER ------------ Ion Engine > --- PROPULSION ------- Aluminum Leg Aluminum Leg > --- UTILITY ---------- Large Storage Unit Trap Reconfigurator > --- WEAPON ----------- Assault Rifle Assault Rifle > --- INVENTORY -------- Light Treads Light Treads Flying Fortress v7 Light Assault Rifle AWS/Autocannon [Rating: 21] Favorites ----------- Power Ion Engine Engine Ion Engine Propulsion Aluminum Leg Treads Light Treads Leg Aluminum Leg Utility Small Storage Unit Device Trap Reconfigurator Storage Small Storage Unit Protection Light Armor Plating Weapon Assault Rifle Ballistic Gun Assault Rifle Build | -11 -10 -10 -10 -9 ------- Run | Scr Mat Min Exi Min Slots Evolved . | . . . . . Power . | . . . . . Propulsion . | . . . . . Utility . | . . . . . Weapon . | . . . . . Parts Attached 15 | 6 1 1 4 3 Power 1 | 1 . . . . Engine 1 | 1 . . . . Core . | . . . . . Reactor . | . . . . . Propulsion 4 | 2 . . 2 . Treads 2 | . . . 2 . Leg 2 | 2 . . . . Wheel . | . . . . . Hover . | . . . . . Flight . | . . . . . Utility 5 | 1 1 1 2 . Device 1 | . . . 1 . Storage 2 | 1 . . 1 . Processor . | . . . . . Hackware . | . . . . . Protection 2 | . 1 1 . . Artifact . | . . . . . Weapon 5 | 2 . . . 3 Energy Gun . | . . . . . Energy Cannon . | . . . . . Ballistic Gun 5 | 2 . . . 3 Ballistic Cannon . | . . . . . Launcher . | . . . . . Special Weapon . | . . . . . Impact Weapon . | . . . . . Slashing Weapon . | . . . . . Piercing Weapon . | . . . . . Special Melee Weapon . | . . . . . Unidentified Prototypes 1 | . . . 1 . Parts Lost 6 | . . . . 6 Power 1 | . . . . 1 Propulsion . | . . . . . Utility 1 | . . . . 1 Weapon 4 | . . . . 4 Highest Loss Streak 6 | . . . . 6 Average Slot Usage (%) 97 | . 96 100 100 55 Engine 13 | . 14 14 14 5 Treads 3 | . . . 7 12 Leg 23 | . 28 28 20 . Device 4 | . . . 11 5 Storage 13 | . 14 14 14 7 Protection 8 | . 11 14 2 . Ballistic Gun 27 | . 28 28 28 23 Naked Turns 13 | . . . . 13 Heaviest Build 26 | 13 16 16 26 26 Greatest Support 40 | 20 20 20 40 40 Greatest Overweight (x) 8 | 1 . . 8 . Average Overweight (x) . | . . . . . Largest Inventory Capacity 10 | 6 6 6 10 10 Average Capacity 6 | 4 6 6 7 7 Most Carried 10 | 3 5 6 10 10 Average Carried 5 | 1 3 5 6 6 Final Capacity 10 | 6 6 6 10 4 Final Carried 10 | 2 5 6 10 3 Class Distribution -------------------- 100% | Mutant Dominant Class ---------------- Mutant | -10/Materials Mutant | -10/Mines Mutant | -10/Exiles Mutant | -9/Mines Resources | -11 -10 -10 -10 -9 ----------- Run | Scr Mat Min Exi Min Matter Collected 403 | 245 49 106 . 3 Remotely . | . . . . . Salvage Created 307 | . 129 178 . . Parts 27 | . 10 17 . . Haulers Intercepted . | . . . . . Recyclers Shooed . | . . . . . Parts Field Recycled . | . . . . . Retrieved Matter . | . . . . . Parts Self-Destructed . | . . . . . Prevented . | . . . . . Kills | -11 -10 -10 -10 -9 ------- Run | Scr Mat Min Exi Min Combat Hostiles Destroyed 8 | . 3 5 . . Guns 8 | . 3 5 . . Classes Destroyed 4 | . 2 2 . . Tunneler 1 | . . 1 . . Recycler 1 | . 1 . . . Swarmer 6 | . 3 3 . . Grunt 3 | . . 3 . . Best Kill Streak 4 | . 4 3 . . Combat Bots Only 3 | . 3 3 . . Max Kills in Single Turn 2 | . 2 2 . . Gunslinging 1 | . . 1 . . Exploded . | . . . . . Melee . | . . . . . Uniques/NPCs Destroyed . | . . . . . Combat | -11 -10 -10 -10 -9 -------- Run | Scr Mat Min Exi Min Damage Taken 1097 | . 57 230 . 810 Core 264 | . . 22 . 242 Absorbed by Shields . | . . . . . Core Remaining (%) 100 | 100 . . . . Volleys Fired 26 | . 4 16 . 6 Largest 2 | . 2 2 . 2 Hottest 40 | . 40 40 . 40 Shots Fired 52 | . 8 32 . 12 Gun 52 | . 8 32 . 12 Cannon . | . . . . . Launcher . | . . . . . Special . | . . . . . Kinetic 52 | . 8 32 . 12 Thermal . | . . . . . Explosive . | . . . . . Electromagnetic . | . . . . . Robot Hit Streak 3 | . 3 3 . 1 Robot Miss Streak 8 | . 1 6 . 8 Penetration Max . | . . . . . Secondary Targets 1 | . . 1 . . Max Gunslinging Chain 1 | . . 1 . . Shots Hit Robots 20 | . 5 13 . 2 Core Hits 15 | . 4 10 . 1 Critical Hits . | . . . . . Critical Kills . | . . . . . Critical Parts Destroyed . | . . . . . Melee Attacks . | . . . . . Impact . | . . . . . Slashing . | . . . . . Piercing . | . . . . . Sneak Attacks . | . . . . . Combat Hostiles . | . . . . . Follow-up Attacks . | . . . . . Damage Inflicted 360 | . 77 222 . 61 Guns 360 | . 77 222 . 61 Cannons . | . . . . . Explosions . | . . . . . Melee . | . . . . . Ramming . | . . . . . Kinetic 360 | . 77 222 . 61 Thermal . | . . . . . Explosive . | . . . . . Electromagnetic . | . . . . . Impact . | . . . . . Slashing . | . . . . . Piercing . | . . . . . Highest Corruption 8 | . . . . 8 Average Corruption 7 | . . . . 7 Corruption Purged . | . . . . . Effects 2 | . . . . 2 Data Loss (minor) 2 | . . . . 2 Overload Shots . | . . . . . Overflow Damage . | . . . . . Projectiles . | . . . . . Explosions . | . . . . . Melee . | . . . . . Knockbacks . | . . . . . Impact . | . . . . . Kinetic . | . . . . . Secondary . | . . . . . Self-Inflicted Damage . | . . . . . Shots . | . . . . . Rammed . | . . . . . Targets Rammed . | . . . . . Kicked . | . . . . . Crushed . | . . . . . Highest Temperature 40 | . . 2 . 40 Average Temperature 10 | . . 2 . 15 Received Heat Transfer 312 | . . 114 . 198 Siege Activations . | . . . . . Robots Corrupted . | . . . . . Combat Hostiles . | . . . . . Parts Fried . | . . . . . Impact Corruptions . | . . . . . Robots Melted . | . . . . . Combat Hostiles . | . . . . . Parts Melted . | . . . . . Heat Transferred . | . . . . . Parts Sabotaged . | . . . . . Parts Stolen . | . . . . . Parts Stripped . | . . . . . Power Chain Reactions . | . . . . . Missiles Intercepted . | . . . . . Alert | -11 -10 -10 -10 -9 ------- Run | Scr Mat Min Exi Min Peak Influence 126 | . 75 126 . 37 Average Influence 57 | . 43 68 . 19 Maximum Alert Level . | . . . . . Low Security (%) 100 | 100 100 100 . 100 Level 1 . | . . . . . Level 2 . | . . . . . Level 3 . | . . . . . Level 4 . | . . . . . Level 5 . | . . . . . High Security . | . . . . . Max Security . | . . . . . Squads Dispatched . | . . . . . Investigation . | . . . . . Extermination . | . . . . . Reinforcement . | . . . . . Assault . | . . . . . Garrison . | . . . . . Intercept . | . . . . . Construction Impeded . | . . . . . Haulers Reinforced . | . . . . . Stealth | -11 -10 -10 -10 -9 --------- Run | Scr Mat Min Exi Min Distress Signals 1 | . . 1 . . Communications Jammed . | . . . . . Distress Signals . | . . . . . Times Spotted 41 | . 3 12 . 26 Peak Tracking Total 10 | . 3 3 . 10 Tactical Retreats 1 | . . . . 1 Traps | -11 -10 -10 -10 -9 ------- Run | Scr Mat Min Exi Min Traps Triggered . | . . . . . Indirectly . | . . . . . Trap Hack Attempts . | . . . . . Triggered . | . . . . . Disarmed . | . . . . . Reprogrammed . | . . . . . Reused . | . . . . . Traps Extracted . | . . . . . Installed . | . . . . . Triggered . | . . . . . Machines | -11 -10 -10 -10 -9 ---------- Run | Scr Mat Min Exi Min Machines Disabled . | . . . . . Max in Single Turn . | . . . . . Machines Sabotaged . | . . . . . Garrisons Compromised . | . . . . . Overloaded Fab Kills . | . . . . . Fab Network Shutdowns . | . . . . . Hacking | -11 -10 -10 -10 -9 --------- Run | Scr Mat Min Exi Min Machines Accessed 1 | . 1 . . . Terminals 1 | . 1 . . . Fabricators . | . . . . . Repair Stations . | . . . . . Recycling Units . | . . . . . Scanalyzers . | . . . . . Garrison Access . | . . . . . Total Hacks 1 | . 1 . . . Successful . | . . . . . Failed 1 | . 1 . . . Catastrophic . | . . . . . Database Lockouts . | . . . . . Manual 2 | . 1 . 1 . Terminals 1 | . 1 . . . Fabricators . | . . . . . Repair Stations . | . . . . . Recycling Units . | . . . . . Scanalyzers . | . . . . . Garrison Access . | . . . . . Terminal Hacks . | . . . . . Fabricator Hacks . | . . . . . Repair Station Hacks . | . . . . . Recycling Unit Hacks . | . . . . . Scanalyzer . | . . . . . Garrison Access Hacks . | . . . . . Unauthorized Hacks . | . . . . . Terminals . | . . . . . Fabricators . | . . . . . Repair Stations . | . . . . . Recycling Units . | . . . . . Scanalyzers . | . . . . . Garrison Access . | . . . . . Data Cores Recovered . | . . . . . Used . | . . . . . Hacking Detections 1 | . 1 . . . Full Trace Events . | . . . . . Feedback Events . | . . . . . Feedback Blocked . | . . . . . Robot Schematics Acquired . | . . . . . Robots Built . | . . . . . Matter . | . . . . . Time . | . . . . . Total Robot Build Rating . | . . . . . Part Schematics Acquired . | . . . . . Parts Built . | . . . . . Matter . | . . . . . Time . | . . . . . Total Part Build Rating . | . . . . . Parts Repaired . | . . . . . Time . | . . . . . Parts Recycled . | . . . . . Recycled Matter . | . . . . . Retrieved Matter . | . . . . . Retrieved Components . | . . . . . Parts Scanalyzed . | . . . . . Part Schematics Acquired . | . . . . . Parts Damaged . | . . . . . Bothacking | -11 -10 -10 -10 -9 ------------ Run | Scr Mat Min Exi Min Used RIF Installer . | . . . . . Robots Hacked . | . . . . . Non-combat . | . . . . . Combat . | . . . . . Robot Hacks Applied . | . . . . . Relay Couplers Released . | . . . . . Robots Rewired . | . . . . . Allies Hacked . | . . . . . Hacks Repelled . | . . . . . Allies | -11 -10 -10 -10 -9 -------- Run | Scr Mat Min Exi Min Total Allies 7 | . . 6 . 1 Largest Group 6 | . . 6 3 3 Highest-Rated Group 120 | . . 120 59 59 Highest-Rated Ally 31 | . . 31 31 31 Total Orders . | . . . . . Ally Attacks 60 | . . 40 . 20 Total Damage 842 | . . 546 . 296 Kills 17 | . . 9 . 8 Allies Corrupted . | . . . . . Allies Melted . | . . . . . Intel | -11 -10 -10 -10 -9 ------- Run | Scr Mat Min Exi Min Robot Analysis Total . | . . . . . Derelict Logs Recovered 2 | . . 1 . 1 Drone Launches . | . . . . . Drone Recoveries . | . . . . . Exploration | -11 -10 -10 -10 -9 ------------- Run | Scr Mat Min Exi Min Turns Passed 1997 | 79 140 961 709 108 Spaces Moved 1317 | 60 103 513 517 124 Core 116 | 12 . . 1 103 Treads 127 | . . . 106 21 Legs 1074 | 48 103 513 410 . Wheels . | . . . . . Hover . | . . . . . Flight . | . . . . . Fastest Speed 50 | 50 120 120 120 50 Average Speed 120 | 110 120 120 134 68 Slowest Speed 450 | 120 120 120 450 160 Overloaded Moves . | . . . . . Propulsion Burnouts . | . . . . . Robots Hopped . | . . . . . Cave-ins Triggered . | . . . . . Exploration Rate (%) 47 | 4 28 94 78 33 Regions Visited 4 Branch Regions 3 Pre-discovered Areas 1 | . . . . 1 Known Exits Taken . | . . . . . Unknown Exits Taken 4 | 1 1 1 1 . Scrap Searched 1 | . . 1 . . Spaces Dug . | . . . . . Terrain Destroyed . | . . . . . Melee . | . . . . . Projectile . | . . . . . AOE . | . . . . . Actions | -11 -10 -10 -10 -9 --------- Run | Scr Mat Min Exi Min Total 1683 | 73 111 828 535 136 Wait 292 | . . 292 . . Move 1313 | 59 102 512 516 124 Hop . | . . . . . Pick Up 22 | 8 4 4 6 . Fast Attach 1 | . . . 1 . Attach 12 | 6 1 . 2 3 Detach . | . . . . . Swap 2 | . . 1 1 . Drop 15 | . . 3 9 3 Fire 26 | . 4 16 . 6 Melee . | . . . . . Ram . | . . . . . Kick . | . . . . . Crush . | . . . . . Escape Stasis . | . . . . . Rewire . | . . . . . Trap . | . . . . . Miscellaneous . | . . . . . Route ------- -11/Scrapyard -10/Materials -10/Mines (discovered 3 exits: [*Mat x2] / *Exi) -10/Exiles -9/Mines History --------- Turn | Location | Event 4 | -11/Scrapyard | Discovered new exit (range 16) 80 | -11/Scrapyard | Entered Materials 192 | -10/Materials | Discovered new exit (range 16) 220 | -10/Materials | Entered Mines 279 | -10/Mines | Assisted by bots powering up and referring to "LRC-V3" 300 | -10/Mines | Build established: Mutant 420 | -10/Mines | Discovered new exit (range 16) 500 | -10/Mines | Learned 4 Materials zone layouts 506 | -10/Mines | Received a Mining Laser from a helpful Derelict 533 | -10/Mines | Discovered new exit (range 8) 607 | -10/Mines | Excavation squad dispatched 607 | -10/Mines | A large section of the Mines collapsed 857 | -10/Mines | Excavation squad dispatched 1168 | -10/Mines | Deemed a non-threat by the Exiles lab entrance 1169 | -10/Mines | Discovered new exit (range 5) 1181 | -10/Mines | Entered Exiles 1181 | -10/Exiles | Accompanied by 3 allies 1211 | -10/Exiles | Led the pair of lost Derelicts to a safe place 1211 | -10/Exiles | Met 8R-AWN 1231 | -10/Exiles | Met EX-HEX 1264 | -10/Exiles | Met EX-BIN 1283 | -10/Exiles | Aligned with FarCom system 1285 | -10/Exiles | Given EX-Vault access code 1312 | -10/Exiles | Opened EX-Vault 1319 | -10/Exiles | Found Prototype Ballistic Cannon 1323 | -10/Exiles | Found Prototype Device 1323 | -10/Exiles | Identified Trap Reconfigurator 1354 | -10/Exiles | Warned to stay clear of 0b10 Research branches 1388 | -10/Exiles | Met EX-DEC 1452 | -10/Exiles | Visited The Gauntlet 1708 | -10/Exiles | Found Prototype Flight Unit 1869 | -10/Exiles | Discovered new exit (range 14) 1890 | -10/Exiles | Stole three prototypes: AWS/Autocannon, Trap Reconfigurator, Flying Fortress v7 1890 | -10/Exiles | Entered Mines 1890 | -9/Mines | Accompanied by 2 allies 1891 | -9/Mines | Assembled infested the area 1895 | -9/Mines | Escorted by a lone wolf Derelict 1896 | -9/Mines | Assisted by a Guerilla fighting off Assembled 1905 | -9/Mines | Learned 4 Materials zone layouts 1915 | -9/Mines | Learned location of Storage (-9) 1973 | -9/Mines | Core integrity fell below 50% 1988 | -9/Mines | Core integrity fell below 20% 1998 | -9/Mines | Destroyed by as-07129 with Assembled Heavy Rifle Last Messages --------------- 01940_ Assault Rifle destroyed. 01940_ System corrupted by crushing effect (+4). 01941_ 10-1MF(g): "Mission, incomplete...*fzzt*" 01941_ 10-1MF(g) destroyed. 01943_ Dropped Lgt. Treads. 01943_ Lgt. Assault Rifle severed. 01943_ Assault Rifle destroyed. 01943_ System corrupted by crushing effect (+4). 01943_ Knocked back. 01944_ Dropped Prototype Flight Unit. 01946_ Dropped Lrg. Storage Unit. 01947_ as-37319 destroyed. 01947_ as-68334 destroyed. 01947_ as-42511 destroyed. 01948_ Acquired 3 matter. 01971_ System corrupted: Component data lost. 01971_ Lgt. Assault Rifle destroyed. 01996_ U-05 Engineer lays Concrete. 01997_ System corrupted: Component data lost. 01997_ U-05 Engineer lays Concrete. Map ----- +----------------------------------------------------+ | ?????????????????????????????????????????????????? | | ?????????????????????????????????????????????????? | | ?????????????????????????????????????????????????? | | ?????????????????????????????????????????????????? | | ?????????????????????????????????????????????????? | | ?????????????#???????????????????????????????????? | | ????????????? #??????????????????????????????????? | | ????????????? ####??????????????????????????????? | | ????????????? ####%??????????????????????????? | | ????????????? ???????????????????????????? | | ????????????? ????????????????????????????? | | ????????????? ?????????????????????????????? | | ????????????? #?????????????????????????????? | | ?????????????# "#?????????????????????????????? | | ????????????## ##?????????????????????????????? | | ??????????### ##????###????????????????????## | | ??????????# ##### ##??????????????????## | | ????????### u u #?????????????????## | | ????????# = % #????????????????## | | ?????????# = % #????????????????## | | ?????????# =! #???????????????## | | ?????????# # #???????????????# | | ?????????### # #????????###?????# ! | | ???????????## #???????## ##????## [ | | ????????????## # #??????## #?????## | | ?????????????# ## @###????# #??????## # | | ?????????????# ## ##??## #???????# # | | ?????????????# ### # # ##?# ##???#### # | | ?????????????# #?##### # ### ##### | | ?????????????# #????# ## | | ?????????????# ##???# %a # # | | ?????????????# ##??# % < ### | | ?????????????# ## # ## ##?# | | ????????????## =[ # #### #??? | | ????????##### *%[%= # #########??# ##?? | | ???????## ==%!## ### ########????# ##? | | ???????# ##########?# #???## #? | | ??????# ##??????????######## ##### #? | | ??????# #??????????????????# ##? | | ??????# ??????????????????######## ### ##?? | | ??????## ?????????????????????????####?####??? | | ???????## #????????????????????????????????????? | | ????????####?????????????????????????????????????? | | ?????????????????????????????????????????????????? | | ?????????????????????????????????????????????????? | | | | | | | | | | | +----------------------------------------------------+ Best States ------------- Heat Dissipation 25 Energy Generation 10 Energy Capacity 250 Matter Stores 300 Matter Capacity 300 Sight Range 16 Terrain Scan Density 10 Armor Coverage 150 Evasion (%) 50 Recoil Reduction 2 Item Schematics ----------------- None Robot Schematics ------------------ None Fabricated ------------ Nothing Alien Tech Used ----------------- None Achievements -------------- None Challenges ------------ None Game ------ Seed GlidesysShockReactor Manual? 0 Play Time 00:12:06 Cumulative 42.7 hours Start 2020.04.26 @ 12:30:31 End 2020.04.26 @ 12:41:07 Sessions 1 Manual Loads 0 Difficulty Rogue Special Mode None Game No. 36 Rogue 35 Adventurer 0 Explorer 1 Win Type - Total 0 Types 0/0/0/0/0/0/0 Lore% 33 Gallery% 50 Achievement% 34 Wizard Run 0 Options --------- ASCII 0 Keyboard 0 Movement Numpad Keybinds 0 Fullscreen 1 Font 18/Smallcaps Map View 76x50 Tactical HUD 1 Map Filters NONE Filters NONE Steam X RUN: d2335bb4-9bbf-4112-bd89-5d6c4418991c